fUSD/lending_fUSD_20251221
["ID","MTS","AMOUNT","RATE_DAILY","PERIOD"]
[399333323,1766313038751,-150.0,0.00014856,2]
[399333324,1766313038760,-166.66,0.00014911,2]
[399333325,1766313038769,-2000.0,0.00014916,2]
[399333326,1766313038779,-518.0,0.00014925,2]
[399333327,1766313038788,-1262.0,0.00014925,2]
[399333328,1766313038797,-911.0,0.00014925,2]
[399333329,1766313038807,-1197.0,0.00014925,2]
[399333330,1766313038816,-1326.0,0.00014925,2]
[399333331,1766313038826,-612.0,0.00014925,2]
[399333332,1766313038835,-2429.0,0.00014925,2]
[399333333,1766313038845,-1154.75497368,0.00015,2]
[399333334,1766313038855,-13730.75410372,0.00015,2]
[399333335,1766313038864,-1220.77,0.00015068,2]
[399333336,1766313038873,-500.0,0.00015178,2]
[399333337,1766313038884,-449.0,0.00015205,2]
[399333338,1766313038894,-500.0,0.00015217,2]
[399333339,1766313038904,-1406.72603052,0.00015221,2]
[399333340,1766313038914,-150.0,0.00015288,2]
[399333341,1766313038923,-292.61,0.0001531,2]
[399333342,1766313038933,-379.03,0.0001531,2]
[399333343,1766313038943,-150.99,0.0001531,2]
[399333344,1766313038952,-299.99,0.0001531,2]
[399333345,1766313038962,-1220.77,0.00015342,2]
[399333346,1766313038972,-505.85702931,0.000154,2]
[399333347,1766313038982,-4857.0,0.00015401,2]
[399333348,1766313038992,-254.65741091,0.00015461,2]
[399333349,1766313039001,-2500.0,0.00015464,2]
[399333350,1766313039011,-736.0,0.0001549,2]
[399333351,1766313039020,-151.0,0.00015574,2]
[399333352,1766313039029,-620.0,0.00015574,2]
[399333353,1766313039038,-5450.0,0.00015574,2]
[399333354,1766313039047,-553.64373807,0.00015574,2]
[399333355,1766313039057,-450.83096488,0.00015574,2]
[399333356,1766313039066,-300.0,0.00015574,2]
[399333357,1766313039075,-200.0,0.00015574,2]
[399333358,1766313039085,-207.4,0.00015574,2]
[399333359,1766313039094,-215.0738,0.00015574,2]
[399333360,1766313039104,-223.0315306,0.00015574,2]
[399333361,1766313039443,-231.28369723,0.00015574,2]
[399333362,1766313039452,-239.84119403,0.00015574,2]
[399333363,1766313039462,-248.71531821,0.00015574,2]
[399333364,1766313039471,-257.91778498,0.00015574,2]
[399333365,1766313039481,-267.46074303,0.00015574,2]
[399333366,1766313039490,-1220.77,0.00015616,2]
[399333367,1766313039499,-1406.72603052,0.00015781,2]
[399333368,1766313039508,-2228.99632343,0.00015807,2]
[399333369,1766313039517,-823.0,0.00015825,2]
[399333370,1766313039526,-1220.77,0.0001589,2]
[399333371,1766313039536,-3292.0,0.0001592,2]
[399333372,1766313039544,-500.0,0.00015973,2]
[399333373,1766313039553,-500.0,0.00015973,2]
[399333374,1766313039562,-500.0,0.00015973,2]
[399333375,1766313039575,-500.0,0.00015973,2]
[399333376,1766313039584,-500.0,0.00015973,2]
[399333377,1766313039593,-500.0,0.00015973,2]
[399333378,1766313039603,-500.0,0.00015973,2]
[399333379,1766313039611,-500.0,0.00015973,2]
[399333380,1766313039620,-500.0,0.00015973,2]
[399333381,1766313039631,-500.0,0.00015973,2]
[399333382,1766313039640,-500.0,0.00015973,2]
[399333383,1766313039649,-500.0,0.00015973,2]
[399333384,1766313039658,-500.0,0.00015973,2]
[399333385,1766313039667,-500.0,0.00015973,2]
[399333386,1766313039677,-500.0,0.00015973,2]
[399333387,1766313039686,-500.0,0.00015973,2]
[399333388,1766313039695,-500.0,0.00015973,2]
[399333389,1766313039704,-500.0,0.00015973,2]
[399333390,1766313039714,-511.00836079,0.00015973,2]
[399333391,1766313039723,-500.0,0.00015973,2]
[399333392,1766313039732,-500.0,0.00015973,2]
[399333393,1766313039742,-500.0,0.00015973,2]
[399333394,1766313039750,-500.0,0.00015973,2]
[399333395,1766313039760,-500.0,0.00015973,2]
[399333396,1766313039770,-500.0,0.00015973,2]
[399333397,1766313039779,-500.0,0.00015973,2]
[399333398,1766313039789,-500.0,0.00015973,2]
[399333399,1766313039799,-500.0,0.00015973,2]
[399333400,1766313039808,-500.0,0.00015973,2]
[399333401,1766313039817,-500.0,0.00015973,2]
[399333402,1766313039827,-500.0,0.00015973,2]
[399333403,1766313039836,-500.0,0.00015973,2]
[399333404,1766313039847,-500.0,0.00015973,2]
[399333405,1766313039856,-500.0,0.00015973,2]
[399333406,1766313039865,-500.0,0.00015973,2]
[399333407,1766313039874,-500.0,0.00015973,2]
[399333408,1766313039883,-500.0,0.00015973,2]
[399333409,1766313039893,-500.0,0.00015973,2]
[399333410,1766313039903,-500.0,0.00015973,2]
[399333411,1766313039912,-500.0,0.00015973,2]
[399333412,1766313039922,-500.0,0.00015973,2]
[399333413,1766313039931,-213.8897997,0.0001599,2]
[399333414,1766313039941,-152313.04137392,0.00016,4]
[399333415,1766313039950,-963.32146579,0.00016012,2]
[399333416,1766313039959,-500.0,0.00016115,2]
[399333417,1766313039969,-574.12855637,0.00016122,2]
[399333418,1766313039979,-150.0,0.00016137,2]
[399333419,1766313039988,-1220.77,0.00016164,2]
[399333420,1766313039998,-2562.0,0.00016167,2]
[399333421,1766313040009,-254.65741091,0.0001618,2]
[399333422,1766313040019,-5000.0,0.000162,5]
[399333423,1766313040029,-2562.0,0.00016255,2]
[399333424,1766313040038,-200.0,0.00016297,2]
[399333425,1766313040048,-2562.0,0.00016315,2]
[399333426,1766313040059,-2562.0,0.00016424,2]
[399333427,1766313040068,-1220.77,0.00016438,2]
[399333428,1766313040078,-500.0,0.00016438,2]
[399333429,1766313040087,-500.0,0.00016438,2]
[399333430,1766313040097,-500.0,0.00016438,2]
[399333431,1766313040107,-500.0,0.00016438,2]
[399333432,1766313040118,-500.0,0.00016438,2]
[399333433,1766313040129,-500.0,0.00016438,2]
[399333434,1766313040139,-500.0,0.00016438,2]
[399333435,1766313040148,-500.0,0.00016438,2]
[399333436,1766313040159,-500.0,0.00016438,2]
[399333437,1766313040168,-500.0,0.00016438,2]
[399333438,1766313040178,-500.0,0.00016438,2]
[399333439,1766313040188,-500.0,0.00016438,2]
[399333440,1766313040197,-500.0,0.00016438,2]
[399333441,1766313040206,-500.0,0.00016438,2]
[399333442,1766313040216,-500.0,0.00016438,2]
[399333443,1766313040225,-500.0,0.00016438,2]
[399333444,1766313040235,-500.0,0.00016438,2]
[399333445,1766313040246,-500.0,0.00016438,2]
[399333446,1766313040256,-500.0,0.00016438,2]
[399333447,1766313040267,-500.0,0.00016438,2]
[399333448,1766313040277,-500.0,0.00016438,2]
[399333449,1766313040286,-500.0,0.00016438,2]
[399333450,1766313040296,-500.0,0.00016438,2]
[399333452,1766313040305,-500.0,0.00016438,2]
[399333454,1766313040314,-500.0,0.00016438,2]
[399333456,1766313040323,-500.0,0.00016438,2]
[399333458,1766313040333,-500.0,0.00016438,2]
[399333460,1766313040345,-500.0,0.00016438,2]
[399333462,1766313040353,-500.0,0.00016438,2]
[399333464,1766313040362,-500.0,0.00016438,2]
[399333466,1766313040372,-500.0,0.00016438,2]
[399333468,1766313040381,-500.0,0.00016438,2]
[399333470,1766313040390,-500.0,0.00016438,2]
[399333472,1766313040400,-642.12392347,0.00016438,2]
[399333474,1766313040409,-500.0,0.00016438,2]
[399333475,1766313040418,-500.0,0.00016438,2]
[399333476,1766313040428,-500.0,0.00016438,2]
[399333477,1766313040437,-500.0,0.00016438,2]
[399333478,1766313040450,-141.51062334,0.00016438,2]
[399333479,1766313040523,-358.48937666,0.00016438,2]
[399333480,1766313040532,-500.0,0.00016438,2]
[399333482,1766313040542,-500.0,0.00016438,2]
[399333483,1766313040551,-500.0,0.00016438,2]
[399333484,1766313040560,-500.0,0.00016438,2]
[399333485,1766313040569,-500.0,0.00016438,2]
[399333486,1766313040578,-500.0,0.00016438,2]
[399333487,1766313040588,-500.0,0.00016438,2]
[399333488,1766313040597,-500.0,0.00016438,2]
[399333489,1766313040606,-800.0,0.00016438,2]
[399333490,1766313040615,-2562.0,0.00016494,2]
[399333491,1766313040625,-2562.0,0.00016503,2]
[399333492,1766313040634,-1000.0,0.00016521,2]
[399333493,1766313040643,-1000.0,0.00016521,2]
[399333494,1766313040653,-1000.0,0.00016521,2]
[399333495,1766313040662,-311.2294052,0.00016521,2]
[399333496,1766313040671,-674.54817403,0.00016521,2]
[399333497,1766313040680,-1000.0,0.00016521,2]
[399333498,1766313040689,-748.34046758,0.00016521,2]
[399333499,1766313040698,-1000.0,0.00016521,2]
[399333500,1766313040707,-1000.0,0.00016521,2]
[399333501,1766313040716,-1000.0,0.00016521,2]
[399333502,1766313040726,-725.65290745,0.00016521,2]
[399333503,1766313040735,-1000.0,0.00016521,2]
[399333504,1766313040745,-309.67209676,0.00016521,2]
[399333505,1766313040754,-1000.0,0.00016521,2]
[399333506,1766313040763,-1000.0,0.00016521,2]
[399333507,1766313040773,-1000.0,0.00016521,2]
[399333508,1766313040783,-979.05040621,0.00016521,2]
[399333509,1766313040792,-1000.0,0.00016521,2]
[399333510,1766313040801,-1000.0,0.00016521,2]
[399333511,1766313040810,-1000.0,0.00016521,2]
[399333512,1766313040820,-669.31135743,0.00016521,2]
[399333513,1766313040830,-1000.0,0.00016521,2]
[399333514,1766313040839,-1000.0,0.00016521,2]
[399333515,1766313040848,-1000.0,0.00016521,2]
[399333516,1766313040858,-1000.0,0.00016521,2]
[399333517,1766313040867,-1000.0,0.00016521,2]
[399333518,1766313040876,-1016.47519844,0.00016521,2]
[399333519,1766313040886,-378.15038662,0.00016521,2]
[399333520,1766313040895,-1000.0,0.00016521,2]
[399333521,1766313040904,-1000.0,0.00016521,2]
[399333522,1766313040914,-1000.0,0.00016521,2]
[399333523,1766313040923,-501.03382045,0.00016521,2]
[399333524,1766313040932,-1000.0,0.00016521,2]
[399333525,1766313040942,-1000.0,0.00016521,2]
[399333526,1766313040952,-1000.0,0.00016521,2]
[399333527,1766313040962,-1000.0,0.00016521,2]
[399333528,1766313040971,-1000.0,0.00016521,2]
[399333529,1766313040981,-1000.0,0.00016521,2]
[399333530,1766313040990,-1000.0,0.00016521,2]
[399333531,1766313040999,-1000.0,0.00016521,2]
[399333532,1766313041008,-195.013415,0.00016603,2]
[399333533,1766313041017,-2562.0,0.00016649,2]
[399333534,1766313041026,-4087.70312749,0.0001666,2]
[399333535,1766313041035,-595.37131296,0.0001667,2]
[399333536,1766313041046,-678.45907569,0.00016675,2]
[399333537,1766313041056,-165.26057485,0.00016675,2]
[399333538,1766313041065,-2562.0,0.00016681,2]
[399333539,1766313041074,-1220.83688525,0.00016712,2]
[399333540,1766313041083,-659.33,0.00016712,2]
[399333541,1766313041092,-402.1775109,0.00016729,2]
[399333542,1766313041101,-7545.2,0.00016733,2]
[399333543,1766313041111,-197.05869145,0.00016772,2]
[399333544,1766313041120,-500.0,0.00016774,2]
[399333545,1766313041129,-500.0,0.00016774,2]
[399333546,1766313041139,-500.0,0.00016774,2]
[399333547,1766313041149,-500.0,0.00016774,2]
[399333548,1766313041158,-500.0,0.00016774,2]
[399333549,1766313041169,-500.0,0.00016774,2]
[399333550,1766313041177,-500.0,0.00016774,2]
[399333551,1766313041188,-500.0,0.00016774,2]
[399333552,1766313041198,-500.0,0.00016774,2]
[399333553,1766313041207,-500.0,0.00016774,2]
[399333554,1766313041217,-500.0,0.00016774,2]
[399333555,1766313041226,-500.0,0.00016774,2]
[399333556,1766313041235,-500.0,0.00016774,2]
[399333557,1766313041244,-300.0,0.00016774,2]
[399333558,1766313041253,-666.0,0.00016774,2]
[399333559,1766313041262,-300.0,0.00016774,2]
[399333560,1766313041271,-666.0,0.00016774,2]
[399333561,1766313041280,-1420.1291101,0.00016775,2]
[399333562,1766313041290,-1481692.1260409,0.00016775,2]
[399333563,1766313041299,-3118.5312899,0.00016775,2]
[399333564,1766313041308,-14219.2423548,0.00016775,2]
[399333565,1766313041317,-151.0,0.00016775,2]
[399333566,1766313041326,-200.0,0.0001678,2]
[399333567,1766313041335,-2562.0,0.00016783,2]
[399333568,1766313041344,-678.45907569,0.00016788,2]
[399333569,1766313041354,-500.0,0.00016829,2]
[399333570,1766313041363,-7000.0,0.0001683,2]
[399333571,1766313041372,-1252.0,0.0001689,2]
[399333572,1766313041381,-698.7155,0.000169,2]
[399333573,1766313041391,-678.45907569,0.000169,2]
[399333574,1766313041400,-254.65741091,0.000169,2]
[399333575,1766313041409,-6531.03242435,0.000169,2]
[399333576,1766313041418,-1036.98774702,0.000169,2]
[399333577,1766313041427,-500.0,0.00016921,2]
[399333578,1766313041438,-151.0,0.00016943,2]
[399333579,1766313041448,-311.1,0.00016943,2]
[399333580,1766313041457,-277.35679052,0.00016943,2]
[399333581,1766313041466,-150.0,0.00016973,2]
[399333582,1766313041475,-150.32225297,0.00016973,2]
[399333583,1766313041485,-158.48329942,0.00016986,2]
[399333584,1766313041497,-253.0,0.0001699,2]
[399333585,1766313041507,-213.8897997,0.0001699,2]
[399333586,1766313041517,-4372.0,0.00016995,2]
[399333587,1766313041527,-3076.5593729,0.00016998,2]
[399333588,1766313041538,-500.0,0.00016999,2]
[399333589,1766313041548,-500.0,0.00016999,2]
[399333590,1766313041557,-500.0,0.00016999,2]
[399333591,1766313041567,-500.0,0.00016999,2]
[399333592,1766313041575,-500.0,0.00016999,2]
[399333593,1766313041585,-581.56254915,0.00016999,2]
[399333594,1766313041594,-2014.45964951,0.00016999,2]
[399333595,1766313041603,-300.0,0.00016999,2]
[399333596,1766313041612,-676.23992225,0.00016999,2]
[399333597,1766313041622,-300.0,0.00016999,2]
[399333598,1766313041631,-666.0,0.00016999,2]
[399333599,1766313041640,-485181.66813264,0.00017,2]
[399333600,1766313041650,-131896.32003327,0.00017,2]
[399333601,1766313041658,-534316.35923028,0.00017,2]
[399333602,1766313041667,-460103.09574512,0.00017,2]
[399333603,1766313041676,-2459349.0719832,0.00017,2]
[399333604,1766313041692,-7002219.8959327,0.00017,2]
[399333605,1766313041706,-4689.22302376,0.00017,2]
[399333606,1766313041732,-458.87313864,0.00017,2]
[399333613,1766313043394,-4803.0,0.00014925,2]
[399333614,1766313043404,-1406.72603052,0.0001634,2]
[399333615,1766313043413,-217854.22306475,0.00017,2]
[399333616,1766313043422,-1500.0,0.00017,2]
[399333617,1766313043431,-1518.25,0.00017,2]
[399333618,1766313043444,-92432.93060597,0.00017,2]
[399333620,1766313045830,-416.48000058,0.00017,2]
[399333621,1766313046064,-5619.280415,0.00017,2]
[399335979,1766313649832,1469.22,7.01e-05,2]
[399335980,1766313650021,1469.22,7.379e-05,2]
[399335981,1766313650421,1469.22,7.748e-05,2]
[399335982,1766313650631,1469.22,8.117e-05,2]
[399335983,1766313650823,1469.22,8.486e-05,2]
[399335984,1766313651028,1469.22,8.854e-05,2]
[399335985,1766313651210,1184.69,9.223e-05,2]
[399335986,1766313651234,284.53,9.223e-05,2]
[399335987,1766313651431,1469.22,9.592e-05,2]
[399335988,1766313651614,1469.22,9.961e-05,2]
[399335989,1766313651815,1469.22,0.0001033,2]
[399335990,1766313657726,-392.94256692,0.00010699,2]
[399335992,1766313659864,-303.69580169,0.00010699,2]
[399335993,1766313661413,-177.50363396,0.00010699,2]
[399335994,1766313661946,575.35496106,9.039e-05,2]
[399335995,1766313661987,448.45149999,9.039e-05,2]
[399335996,1766313666284,-160.79287812,0.00010699,2]
[399335997,1766313669672,219.46687473,9.039e-05,2]
[399335999,1766313669897,-283.31888554,0.00010699,2]
[399336000,1766313671950,-150.96623377,0.00010699,2]
[399336001,1766313671980,-124.86061553,0.00011068,2]
[399336002,1766313674132,-230.19701669,0.00011068,2]
[399336009,1766313676256,-308.55699117,0.00011068,2]
[399336011,1766313680231,-245.71687203,0.00011068,2]
[399336012,1766313682683,-152.02,0.00011068,2]
[399336014,1766313684144,-182.42775107,0.00011068,2]
[399336377,1766314231900,-225.44075351,0.00011068,2]
[399336378,1766314231911,-95.21585414,0.00011437,2]
[399336379,1766314231924,-625.6194234,0.00011437,2]
[399336380,1766314231941,-748.38472246,0.00011437,2]
[399336381,1766314231951,-73.55398794,0.00011806,2]
[399336382,1766314232066,-955.4655682,0.00011806,2]
[399336383,1766314232079,-440.20044386,0.00011806,2]
[399336384,1766314232089,-1200.0,0.00012174,2]
[399336385,1766314232099,-184.86313152,0.00012175,2]
[399336389,1766314232347,-250.0,0.00012175,2]
[399336390,1766314232359,-1034.35686848,0.00012175,2]
[399336391,1766314232369,-300.0,0.00012175,2]
[399336392,1766314232382,-250.0,0.00012175,2]
[399336393,1766314232393,-195.0,0.00012175,2]
[399336394,1766314232403,-193.0,0.00012175,2]
[399336395,1766314232412,-1469.22,0.00012544,2]
[399336396,1766314232421,-300.0,0.0001291,2]
[399336397,1766314232430,-1469.22,0.00012913,2]
[399336398,1766314232440,-5773.7,0.00012957,2]
[399336399,1766314232449,-2413.92971191,0.00013156,2]
[399336400,1766314232458,-150.86,0.00013158,2]
[399336401,1766314232468,-152.22,0.00013158,2]
[399336402,1766314232478,-152.83,0.00013158,2]
[399336403,1766314232489,-500.0,0.00013172,2]
[399336404,1766314232499,-307.14045642,0.00013172,2]
[399336405,1766314232509,-185.56081346,0.00013172,2]
[399336406,1766314232521,-320.4925398,0.00013172,2]
[399336407,1766314232530,-495.82353252,0.00013172,2]
[399336408,1766314232539,-57389.10183492,0.00013173,2]
[399336409,1766314232551,-878.94188727,0.00013173,2]
[399336410,1766314232562,-2215.38478634,0.00013173,2]
[399336411,1766314232848,-1032.00616953,0.00013173,2]
[399336412,1766314232859,-708.73793599,0.00013173,2]
[399336413,1766314232977,-696.11200438,0.00013173,2]
[399336414,1766314232989,-4814.20868647,0.00013173,2]
[399336415,1766314233000,-25567.69656175,0.00013173,2]
[399336416,1766314233012,-10920.8227824,0.00013173,2]
[399336417,1766314233035,-538.73485144,0.00013173,2]
[399336425,1766314238607,-500.0,0.00013172,2]
[399336426,1766314238616,-500.0,0.00013172,2]
[399336427,1766314238626,-500.0,0.00013172,2]
[399336428,1766314238635,-500.0,0.00013172,2]
[399336429,1766314238644,-500.0,0.00013172,2]
[399336430,1766314238653,-500.0,0.00013172,2]
[399336431,1766314238663,-500.0,0.00013172,2]
[399336432,1766314238672,-500.0,0.00013172,2]
[399336433,1766314238681,-500.0,0.00013172,2]
[399336434,1766314238690,-473.72865473,0.00013172,2]
[399336435,1766314238699,-500.0,0.00013172,2]
[399336436,1766314238708,-895238.25249951,0.00013173,2]
[399336437,1766314238717,-150.0,0.00013272,2]
[399336438,1766314238727,-169.30599703,0.00013273,2]
[399336439,1766314238736,-235.5477362,0.00013273,2]
[399336440,1766314238745,-500.28275711,0.00013273,2]
[399336441,1766314238755,-500.0,0.00013273,2]
[399336442,1766314238765,-165.55250469,0.00013273,2]
[399336443,1766314238774,-163.74041745,0.00013273,2]
[399336444,1766314238784,-500.0,0.00013273,2]
[399336445,1766314238793,-176.68955298,0.00013273,2]
[399336446,1766314238803,-500.0,0.00013273,2]
[399336447,1766314238812,-501.13880069,0.00013273,2]
[399336448,1766314238821,-172.62322663,0.00013273,2]
[399336449,1766314238830,-163.12595914,0.00013273,2]
[399336450,1766314238839,-172.78810174,0.00013273,2]
[399336451,1766314238849,-500.0,0.00013273,2]
[399336452,1766314238859,-500.0,0.00013273,2]
[399336453,1766314238868,-500.0,0.00013273,2]
[399336454,1766314238878,-500.0,0.00013273,2]
[399336455,1766314238887,-166.07222089,0.00013273,2]
[399336456,1766314238896,-500.0,0.00013273,2]
[399336457,1766314238906,-165.33365869,0.00013273,2]
[399336458,1766314238915,-162.06342056,0.00013273,2]
[399336459,1766314238924,-500.0,0.00013273,2]
[399336460,1766314238934,-500.0,0.00013273,2]
[399336461,1766314238945,-179.52644703,0.00013273,2]
[399336462,1766314238955,-500.0,0.00013273,2]
[399336463,1766314238964,-500.0,0.00013273,2]
[399336464,1766314238975,-500.0,0.00013273,2]
[399336465,1766314238984,-500.0,0.00013273,2]
[399336466,1766314238993,-174.7668322,0.00013273,2]
[399336467,1766314239003,-500.0,0.00013273,2]
[399336468,1766314239012,-500.0,0.00013273,2]
[399336469,1766314239022,-535.80488435,0.00013273,2]
[399336470,1766314239033,-224.07561459,0.00013273,2]
[399336471,1766314239042,-165.47156837,0.00013273,2]
[399336472,1766314239051,-500.0,0.00013273,2]
[399336473,1766314239060,-500.0,0.00013273,2]
[399336474,1766314239070,-500.0,0.00013273,2]
[399336475,1766314239079,-536.20400277,0.00013273,2]
[399336476,1766314239089,-500.0,0.00013273,2]
[399336477,1766314239098,-500.0,0.00013273,2]
[399336478,1766314239107,-500.0,0.00013273,2]
[399336479,1766314239117,-201.68060624,0.00013273,2]
[399336480,1766314239126,-500.0,0.00013273,2]
[399336481,1766314239135,-500.0,0.00013273,2]
[399336482,1766314239144,-515.90612576,0.00013273,2]
[399336483,1766314239153,-500.0,0.00013273,2]
[399336484,1766314239162,-500.0,0.00013273,2]
[399336485,1766314239171,-276.49556074,0.00013273,2]
[399336486,1766314239181,-168.62041939,0.00013273,2]
[399336487,1766314239190,-500.0,0.00013273,2]
[399336488,1766314239199,-165.81830667,0.00013273,2]
[399336489,1766314239208,-500.0,0.00013273,2]
[399336490,1766314239217,-1616.79,0.00013273,2]
[399336491,1766314239226,-1469.22,0.00013282,2]
[399336492,1766314239235,-1000.0,0.00013362,2]
[399336493,1766314239245,-994.08741311,0.00013367,2]
[399336494,1766314239255,-1680.0,0.00013391,2]
[399336495,1766314239264,-959.0,0.00013406,2]
[399336496,1766314239274,-483.99608564,0.00013435,2]
[399336497,1766314239284,-500.0,0.00013547,2]
[399336498,1766314239293,-1616.79,0.00013547,2]
[399336499,1766314239302,-661.0,0.00013577,2]
[399336500,1766314239312,-550.0,0.00013604,2]
[399336501,1766314239321,-166.66,0.00013612,2]
[399336502,1766314239331,-1469.22,0.00013651,2]
[399336503,1766314239341,-200.0,0.0001369,2]
[399336504,1766314239350,-500.0,0.0001369,2]
[399336505,1766314239359,-500.0,0.0001369,2]
[399336506,1766314239369,-500.0,0.0001369,2]
[399336507,1766314239378,-500.0,0.0001369,2]
[399336508,1766314239387,-200.0,0.0001369,2]
[399336509,1766314239396,-207.4,0.0001369,2]
[399336510,1766314239405,-500.0,0.0001369,2]
[399336511,1766314239414,-151.0,0.0001369,2]
[399336512,1766314239423,-151.0,0.0001369,2]
[399336513,1766314239432,-500.0,0.00013698,2]
[399336514,1766314239441,-471.24835976,0.00013698,2]
[399336515,1766314239451,-500.0,0.00013698,2]
[399336516,1766314239460,-500.0,0.00013698,2]
[399336517,1766314239469,-500.0,0.00013698,2]
[399336518,1766314239478,-500.0,0.00013698,2]
[399336519,1766314239487,-500.0,0.00013698,2]
[399336520,1766314239496,-500.0,0.00013698,2]
[399336521,1766314239505,-500.0,0.00013698,2]
[399336522,1766314239515,-500.0,0.00013698,2]
[399336523,1766314239523,-500.0,0.00013698,2]
[399336524,1766314239533,-500.0,0.00013698,2]
[399336525,1766314239542,-500.0,0.00013698,2]
[399336526,1766314239551,-502.7855108,0.00013698,2]
[399336527,1766314239560,-500.0,0.00013698,2]
[399336528,1766314239570,-500.0,0.00013698,2]
[399336529,1766314239579,-500.0,0.00013698,2]
[399336530,1766314239589,-500.0,0.00013698,2]
[399336531,1766314239598,-500.0,0.00013698,2]
[399336532,1766314239607,-500.0,0.00013698,2]
[399336533,1766314239616,-500.0,0.00013698,2]
[399336534,1766314239626,-500.0,0.00013698,2]
[399336535,1766314239636,-500.0,0.00013698,2]
[399336536,1766314239645,-500.0,0.00013698,2]
[399336537,1766314239654,-500.0,0.00013698,2]
[399336538,1766314239663,-500.0,0.00013698,2]
[399336539,1766314239672,-500.0,0.00013698,2]
[399336540,1766314239682,-500.0,0.00013698,2]
[399336541,1766314239691,-500.0,0.00013698,2]
[399336542,1766314239700,-500.0,0.00013698,2]
[399336543,1766314239709,-500.0,0.00013698,2]
[399336544,1766314239719,-500.0,0.00013698,2]
[399336545,1766314239727,-500.0,0.00013698,2]
[399336546,1766314239736,-500.0,0.00013698,2]
[399336547,1766314239745,-500.0,0.00013698,2]
[399336548,1766314239754,-500.0,0.00013698,2]
[399336549,1766314239763,-500.0,0.00013698,2]
[399336550,1766314239772,-500.0,0.00013698,2]
[399336551,1766314239782,-500.0,0.00013698,2]
[399336552,1766314239791,-500.0,0.00013698,2]
[399336553,1766314239800,-500.0,0.00013698,2]
[399336554,1766314239809,-500.0,0.00013698,2]
[399336555,1766314239818,-500.0,0.00013698,2]
[399336556,1766314239827,-500.0,0.00013698,2]
[399336557,1766314239837,-500.0,0.00013698,2]
[399336558,1766314239846,-500.0,0.00013698,2]
[399336559,1766314239855,-500.0,0.00013698,2]
[399336560,1766314239865,-500.0,0.00013698,2]
[399336561,1766314239874,-500.0,0.00013698,2]
[399336562,1766314239886,-500.0,0.00013698,2]
[399336563,1766314239895,-500.0,0.00013698,2]
[399336564,1766314239904,-500.0,0.00013698,2]
[399336565,1766314239913,-500.0,0.00013698,2]
[399336566,1766314239923,-500.0,0.00013698,2]
[399336567,1766314239933,-500.0,0.00013698,2]
[399336568,1766314239946,-500.0,0.00013698,2]
[399336569,1766314239955,-542.9137325,0.00013698,2]
[399336572,1766314239965,-500.0,0.00013698,2]
[399336574,1766314239974,-500.0,0.00013698,2]
[399336576,1766314239985,-500.0,0.00013698,2]
[399336578,1766314239994,-500.0,0.00013698,2]
[399336580,1766314240004,-501.00325997,0.00013698,2]
[399336581,1766314240014,-500.0,0.00013698,2]
[399336582,1766314240023,-500.0,0.00013698,2]
[399336583,1766314240032,-500.0,0.00013698,2]
[399336584,1766314240041,-500.0,0.00013698,2]
[399336585,1766314240051,-500.0,0.00013698,2]
[399336586,1766314240060,-500.0,0.00013698,2]
[399336587,1766314240069,-500.0,0.00013698,2]